Cogmind - Beta 15 @@@ ROGUE MODE // 2025.10.05 @ 01:18:53 Player: Dare Evans Result: Destroyed by YI-UF0 with YI-UF0's Doublenader Performance ------------- Evolutions (0) 0 Regions Visited (2) 400 Robots Destroyed (12) 60 Value Destroyed (147) 147 Prototype IDs (2) 40 Alien Tech Used (0) 0 Bonus (-63) -63 TOTAL SCORE: 584 Bonus ------- Friendly Fire -63 Cogmind --------- Core Integrity 0/250 Matter 97/300 Energy 73/100 System Corruption 0% Temperature Cool (0) Movement Core (150) Ox2 Location -10/Mines Parts ------- > --- POWER (1) -------- (None) > --- PROPULSION (2) --- (None) > --- UTILITY (2) ------ Small Storage Unit > --- WEAPON (2) ------- Light Assault Rifle Light Assault Rifle > --- INVENTORY (8) ---- Ion Engine Aluminum Leg Aluminum Leg Heat Sink Peak State ------------ > --- POWER ------------ Ion Engine > --- PROPULSION ------- Light Treads Light Treads > --- UTILITY ---------- Small Storage Unit Seismic Detector > --- WEAPON ----------- Medium Laser Assault Rifle > --- INVENTORY -------- Ion Engine Aluminum Leg Aluminum Leg Medium Laser [Rating: 7] Favorites ----------- Power Ion Engine Engine Ion Engine Propulsion Light Treads Treads Light Treads Utility Small Storage Unit Device Seismic Detector Storage Small Storage Unit Weapon Medium Laser Energy Gun Medium Laser Ballistic Gun Assault Rifle Launcher Grenade Launcher Build | -11 -10 -10 ------- Run | Yrd Mat Min Slots Evolved . | . . . Power . | . . . Propulsion . | . . . Utility . | . . . Weapon . | . . . Parts Attached 13 | 7 3 3 Power 2 | 1 1 . Engine 2 | 1 1 . Core . | . . . Reactor . | . . . Propulsion 2 | 2 . . Treads 2 | 2 . . Leg . | . . . Wheel . | . . . Hover . | . . . Flight . | . . . Utility 2 | 2 . . Device 1 | 1 . . Storage 1 | 1 . . Processor . | . . . Hackware . | . . . Protection . | . . . Artifact . | . . . Weapon 7 | 2 2 3 Energy Gun 2 | 1 1 . Energy Cannon . | . . . Ballistic Gun 3 | 1 . 2 Ballistic Cannon . | . . . Launcher 2 | . 1 1 Special Weapon . | . . . Impact Weapon . | . . . Slashing Weapon . | . . . Piercing Weapon . | . . . Special Melee Weapon . | . . . Unidentified Prototypes . | . . . Parts Lost 8 | . . 8 Power 1 | . . 1 Propulsion 2 | . . 2 Utility 1 | . . 1 Weapon 4 | . . 4 Highest Loss Streak 8 | . . 8 To Critical Strikes . | . . . Average Backups 6 | 3 7 6 Power 1 | . 1 1 Propulsion 1 | 1 2 2 Utility . | . . 1 Weapon 2 | . 2 2 Tool/Special . | . . . Unused Backups 5 | . 1 4 Power 2 | . 1 1 Propulsion 2 | . . 2 Utility 1 | . . 1 Weapon . | . . . Tool/Special . | . . . Average Slot Usage (%) 97 | . 99 85 Engine 13 | . 14 12 Treads 27 | . 28 24 Device 12 | . 13 10 Storage 14 | . 14 14 Energy Gun 12 | . 14 5 Ballistic Gun 13 | . 14 7 Launcher 1 | . . 10 Peak Build Rating 7 | 7 7 7 Average Rating 6 | 5 6 6 On Entrance 4 | . 7 7 Naked Turns . | . . . Heaviest Build 17 | 15 16 17 Greatest Support 40 | 40 40 40 Greatest Overweight (x) . | . . . Average Overweight (x) . | . . . Largest Inventory Capacity 8 | 8 8 8 Average Capacity 7 | 7 8 8 Most Carried 8 | 4 8 8 Average Carried 6 | 3 7 7 Final Capacity 8 | 8 8 8 Final Carried 7 | 4 7 4 Class Distribution -------------------- 100% | Mutant Dominant Class ---------------- Mutant | -10/Materials Mutant | -10/Mines Resources | -11 -10 -10 ----------- Run | Yrd Mat Min Matter Collected 341 | 300 41 . Remotely . | . . . Salvage Created 292 | 128 153 11 Parts 20 | 6 12 2 Haulers Intercepted . | . . . Recyclers Shooed 1 | 1 . . Parts Field Recycled . | . . . Retrieved Matter . | . . . Parts Self-Destructed . | . . . Prevented . | . . . Kills | -11 -10 -10 ------- Run | Yrd Mat Min Combat Hostiles Destroyed 5 | . 5 . Guns 5 | . 5 . Classes Destroyed 7 | 2 5 . Worker 1 | . 1 . Builder 1 | . 1 . Tunneler 3 | 2 . 1 Recycler 1 | 1 . . Watcher 1 | . 1 . Swarmer 3 | . 3 . Grunt 2 | . 2 . Best Kill Streak 3 | 3 3 1 Combat Bots Only 3 | . 3 . Max Kills in Single Turn 1 | 1 1 1 Gunslinging . | . . . Exploded . | . . . Melee . | . . . Uniques/NPCs Destroyed . | . . . Combat | -11 -10 -10 -------- Run | Yrd Mat Min Hostile Shots Fired 52 | . 18 34 Missed 11 | . 6 5 Hits 41 | . 12 29 Projectile 41 | . 12 29 AOE 29 | . . 29 Damage Taken 1081 | . 119 962 Core 253 | . 9 244 Absorbed by Shields . | . . . Regen/Repaired (Parts) 16 | . 16 . Core Remaining (%) 100 | 100 . . Volleys Fired 33 | 10 11 12 Largest 2 | 2 2 2 Hottest 70 | 70 70 70 Shots Fired 63 | 20 22 21 Gun 51 | 20 22 9 Cannon . | . . . Launcher 12 | . . 12 Special . | . . . Kinetic 28 | 10 11 7 Thermal 23 | 10 11 2 Explosive 12 | . . 12 Electromagnetic . | . . . Robot Hit Streak 12 | 5 12 8 Robot Miss Streak 3 | 1 1 3 Penetration Max . | . . . Secondary Targets 1 | . 1 . Max Gunslinging Chain 1 | . 1 . Shots Hit Robots 39 | 14 15 10 Core Hits 24 | 4 10 10 Critical Kills . | . . . Critical Parts Destroyed 1 | 1 . . Critical Strikes 6 | 3 3 . Burn 5 | 2 3 . Destroy 1 | 1 . . Melee Attacks . | . . . Impact . | . . . Slashing . | . . . Piercing . | . . . Sneak Attacks . | . . . Combat Hostiles . | . . . Follow-up Attacks . | . . . Damage Inflicted 530 | 169 228 133 Guns 433 | 169 207 57 Cannons . | . . . Explosions 76 | . . 76 Melee . | . . . Ramming 21 | . 21 . Kinetic 221 | 83 93 45 Thermal 212 | 86 114 12 Explosive 76 | . . 76 Electromagnetic . | . . . Impact . | . . . Slashing . | . . . Piercing . | . . . Highest Corruption . | . . . Average Corruption . | . . . Corruption Purged . | . . . Corruption Blocked . | . . . Overload Shots . | . . . Overflow Damage . | . . . Projectiles . | . . . Explosions . | . . . Melee . | . . . Knockbacks . | . . . Impact . | . . . Kinetic . | . . . Secondary . | . . . Self-Inflicted Damage . | . . . Shots . | . . . Rammed 5 | . 5 . Targets Rammed 7 | . 7 . Kicked . | . . . Crushed 2 | . 2 . Highest Temperature 84 | 54 84 18 Average Temperature 26 | 21 32 10 Received Heat Transfer 42 | . 42 . Siege Activations . | . . . Martial Activations . | . . . Shielding Activations . | . . . Robots Disrupted . | . . . Combat Hostiles . | . . . Robots Corrupted . | . . . Combat Hostiles . | . . . Parts Fried . | . . . Impact Corruptions . | . . . Robots Melted . | . . . Combat Hostiles . | . . . Parts Melted 3 | 2 1 . Heat Transferred 999 | 407 555 37 Parts Sabotaged . | . . . Parts Stolen . | . . . Parts Stripped . | . . . Power Chain Reactions . | . . . Alert | -11 -10 -10 ------- Run | Yrd Mat Min Maximum Alert Level . | . . . Low Security (%) 100 | 100 100 100 Level 1 . | . . . Level 2 . | . . . Level 3 . | . . . Level 4 . | . . . Level 5 . | . . . High Security . | . . . Max Security . | . . . Peak Influence 62 | 10 62 18 Initial . | . . . Average 12 | 1 16 3 Influence Increases 187 | 15 144 28 Destroy 0b10 Robot/C 100 | . 100 . Destroy 0b10 Robot/NC 35 | 15 15 5 Destroy Leader 22 | . 22 . Successful Hack 5 | . 5 . Destroy Structure 25 | . 2 23 Influence Decreases 187 | 15 144 28 Time Decay 169 | 15 144 10 Lost Part 18 | . . 18 Squads Dispatched 2 | . 2 . Investigation 2 | . 2 . Extermination . | . . . Reinforcement . | . . . Assault . | . . . Garrison . | . . . Intercept . | . . . Searches Triggered . | . . . Construction Impeded . | . . . Haulers Reinforced . | . . . Active Scanning Responses . | . . . Cargo Convoy Interrupts . | . . . Stealth | -11 -10 -10 --------- Run | Yrd Mat Min Distress Signals . | . . . Communications Jammed . | . . . Distress Signals . | . . . Times Spotted 8 | . 7 1 Peak Tracking Total 3 | . 3 1 Tactical Retreats . | . . . Traps | -11 -10 -10 ------- Run | Yrd Mat Min Traps Triggered 3 | . 3 . Indirectly . | . . . Trap Hack Attempts . | . . . Triggered . | . . . Disarmed . | . . . Reprogrammed . | . . . Reused . | . . . Traps Extracted . | . . . Installed . | . . . Triggered . | . . . Machines | -11 -10 -10 ---------- Run | Yrd Mat Min Machines Disabled . | . . . Max in Single Turn . | . . . Machines Repaired . | . . . Machines Dismantled . | . . . Machines Sabotaged . | . . . Overloaded Fab Kills . | . . . Hacking | -11 -10 -10 --------- Run | Yrd Mat Min Machines Accessed 2 | . 2 . Terminals 1 | . 1 . Fabricators . | . . . Repair Stations 1 | . 1 . Recycling Units . | . . . Scanalyzers . | . . . Garrison Access . | . . . Total Hacks 6 | . 6 . Successful 4 | . 4 . Failed 2 | . 2 . Catastrophic . | . . . Database Lockouts . | . . . Manual . | . . . Terminals 4 | . 4 . Fabricators . | . . . Repair Stations 2 | . 2 . Recycling Units . | . . . Scanalyzers . | . . . Garrison Access . | . . . Terminal Hacks 2 | . 2 . Prototype ID Bank 1 | . 1 . Investigation Status 1 | . 1 . Fabricator Hacks . | . . . Repair Station Hacks 2 | . 2 . Scan Component 1 | . 1 . Repair 1 | . 1 . Recycling Unit Hacks . | . . . Scanalyzer . | . . . Garrison Access Hacks . | . . . Unauthorized Hacks . | . . . Terminals . | . . . Fabricators . | . . . Repair Stations . | . . . Recycling Units . | . . . Scanalyzers . | . . . Garrison Access . | . . . Data Cores Recovered . | . . . Used . | . . . Hacking Detections 2 | . 2 . Full Trace Events 1 | . 1 . Feedback Events . | . . . Feedback Blocked . | . . . Robot Schematics Acquired . | . . . Robots Built . | . . . Authchips . | . . . Time . | . . . Total Robot Build Rating . | . . . Part Schematics Acquired . | . . . Parts Built . | . . . Authchips . | . . . Time . | . . . Total Part Build Rating . | . . . Parts Repaired 1 | . 1 . Time 26 | . 26 . Parts Recycled . | . . . Recycled Matter . | . . . Retrieved Matter . | . . . Retrieved Components . | . . . Parts Scanalyzed . | . . . Part Schematics Acquired . | . . . Parts Damaged . | . . . Bothacking | -11 -10 -10 ------------ Run | Yrd Mat Min Used RIF Installer . | . . . Robots Hacked . | . . . Non-combat . | . . . Combat . | . . . Robot Hacks Applied . | . . . Relay Couplers Released . | . . . Fabnet Peak Effective % . | . . . Robots Rewired . | . . . Allies Hacked . | . . . Hacks Repelled . | . . . Allies | -11 -10 -10 -------- Run | Yrd Mat Min Total Allies . | . . . Largest Group . | . . . Highest-Rated Group . | . . . Highest-Rated Ally . | . . . Total Orders . | . . . Ally Attacks . | . . . Total Damage . | . . . Kills . | . . . Allies Corrupted . | . . . Allies Melted . | . . . Intel | -11 -10 -10 ------- Run | Yrd Mat Min Active Infowar (turns) 530 | 8 467 55 Seismic 530 | 8 467 55 Robot Analysis Total . | . . . Derelict Logs Recovered . | . . . Drone Launches . | . . . Drone Recoveries . | . . . Exploration | -11 -10 -10 ------------- Run | Yrd Mat Min Turns Passed 682 | 114 495 73 Spaces Moved 309 | 46 246 17 Core 4 | 4 . . Treads 305 | 42 246 17 Legs . | . . . Wheels . | . . . Hover . | . . . Flight . | . . . Fastest Speed 50 | 50 160 160 Average Speed 158 | 150 160 160 Slowest Speed 160 | 160 160 160 Overloaded Moves . | . . . Propulsion Burnouts . | . . . Robots Hopped . | . . . Potential Cave-ins . | . . . Cave-ins Triggered . | . . . Exploration Rate (%) 18 | 3 39 12 Regions Visited 2 Branch Regions 1 Pre-discovered Areas . | . . . Known Exits Taken . | . . . Unknown Exits Taken 2 | 1 1 . Scrap Searched . | . . . Spaces Dug . | . . . Terrain Destroyed 41 | . . 41 Melee . | . . . Projectile . | . . . AOE 41 | . . 41 Terrain Rammed . | . . . Walls Destroyed . | . . . Machines Disabled . | . . . Actions | -11 -10 -10 --------- Run | Yrd Mat Min Total 430 | 67 321 42 Wait 52 | 1 45 6 Move 307 | 45 245 17 Hop . | . . . Pick Up 10 | 4 5 1 Fast Attach 11 | 7 4 . Attach 5 | . 1 4 Detach . | . . . Swap 3 | . 1 2 Drop 2 | . 2 . Fire 33 | 10 11 12 Melee . | . . . Ram . | . . . Kick . | . . . Crush 7 | . 7 . Escape Stasis . | . . . Rewire . | . . . Trap . | . . . Miscellaneous . | . . . Route ------- -11/Scrapyard -10/Materials (discovered 2 exits: [*Mat] / [*Min]) -10/Mines History --------- Turn | Location | Event 5 | -11/Scrapyard | Discovered new exit (range 15) 115 | -11/Scrapyard | Entered Materials 318 | -10/Materials | Build established: Mutant 356 | -10/Materials | Discovered new exit (range 15) 463 | -10/Materials | Repaired Seismic Detector 533 | -10/Materials | Discovered new exit (range 8) 610 | -10/Materials | Entered Mines 623 | -10/Mines | YI-UF0 nonchalantly dropped a Grenade Launcher on the ground 676 | -10/Mines | Core integrity fell below 50% 682 | -10/Mines | Core integrity fell below 20% 683 | -10/Mines | Destroyed by YI-UF0 with YI-UF0's Doublenader Last Messages --------------- 00662_ U-05 Engineer lays Concrete. 00663_ Grenade Launcher destroyed. 00664_ The unstable cave ceiling collapses. 00665_ YI-UF0 mumbles something. 00665_ The unstable cave ceiling collapses. 00665_ U-05 Engineer lays Concrete. 00665_ Seismic Detector destroyed. 00666_ U-05 Engineer lays Concrete. 00667_ U-05 Engineer builds a Wall. 00671_ The unstable cave ceiling collapses. 00671_ U-05 Engineer builds a Wall. 00671_ Lgt. Treads destroyed. 00672_ The unstable cave ceiling collapses. 00673_ U-05 Engineer lays Concrete. 00675_ Ion Engine destroyed. 00676_ U-05 Engineer lays Concrete. 00677_ Med. Laser destroyed. 00679_ Assault Rifle destroyed. 00679_ Lgt. Treads destroyed. 00681_ The unstable cave ceiling collapses. Map ----- +----------------------------------------------------+ | | | | | | | | | | | ????????????????????????????????????????? | | ????????????????????????????????????????? | | ????????????????????????????????????????? | | ???????????????????????? ????????????? | | ??????????????????????? ????????????? | | ?????????????????????# ????????????? | | ?????????????????????# ????????????? | | ?????????????????????# ????????????? | | ?????????????????????# #?##?????????? | | ?????????????????????# ## #####?????? | | ??????????????????????# # #?????? | | ????????????????????### # #?????? | | ?????????????????#### # ##????? | | ?????????????????? # #????? | | ??????????????????? ## #????? | | ????????????????????# ## # #????? | | ???????????????????## # # ####??? | | ????????????????#### ## ##?? | | ????????????????# g #?? | | ????????????????# ## #?? | | ???????????????????# @ #?? | | ???????????????????# #?? | | ???????????????????# #?? | | ???????????????????# #?? | | ???????????????????#### ##?? | | ??????????????????????### #?? | | ????????????????????????# #?? | | ????????????????????????## # ##?? | | ?????????????????????????#### # #?? | | ????????????????????????????# # #?? | | ????????????????????????????# #?? | | ????????????????????????????# ####?? | | ????????????????????????????? ###????? | | ????????????????????????????? ##??????? | | ?????????????????????????????# ???????? | | ??????????????????????????????## ???????? | | ???????????????????????????????? ???????? | | ???????????????????????????????? ???????? | | ????????????????????????????????????????? | | ????????????????????????????????????????? | | ????????????????????????????????????????? | | ????????????????????????????????????????? | | ????????????????????????????????????????? | | ????????????????????????????????????????? | | ????????????????????????????????????????? | +----------------------------------------------------+ Best States ------------- Heat Dissipation 25 Energy Generation 10 Energy Capacity 250 Matter Stores 300 Matter Capacity 300 Sight Range 16 Terrain Scan Density 10 Evasion (%) 40 Recoil Reduction 2 Item Schematics ----------------- None Robot Schematics ------------------ None Fabricated ------------ Nothing Repaired ---------- Seismic Detector | 20% | -10/Materials Alien Tech Used ----------------- None Achievements -------------- None Challenges ------------ None Game ------ Seed SpreadSapperHammer Manual? 0 Play Time 00:12:27 Cumulative 14.2 hours Start 2025.10.05 @ 01:07:47 End 2025.10.05 @ 01:18:53 Sessions 1 Manual Loads 0 Difficulty Rogue Special Mode None Game No. 14 Rogue 14 Adventurer 0 Explorer 0 Win Type - Total 0 Types 0/0/0/0/0/0/0/0/0/0 Lore% 8 Gallery% 10 Achievement% 14 Wizard Run 0 Options --------- Layout 2 ASCII 0 Keyboard 0 Movement Numpad Keybinds 0 Fullscreen 2 Font 24/Terminus Map View 50x44 Zoom Use 0% Tactical HUD 1 Map Filters NONE Filters NONE Steam 1 RUN: 6d54cfe0-ff9c-417b-aa4a-5714a0426ae0